fUSD/lending_fUSD_20250514
["ID","MTS","AMOUNT","RATE_DAILY","PERIOD"]
[361012192,1747204244989,-400.0,0.00010958,2]
[361012193,1747204244998,-400.0,0.00010958,2]
[361012194,1747204245008,-793.08,0.00010958,2]
[361012195,1747204245017,-465.86,0.00010958,2]
[361012196,1747204245027,-891.93,0.00010958,2]
[361012197,1747204245036,-400.0,0.00010958,2]
[361012198,1747204245046,-400.0,0.00010958,2]
[361012199,1747204245056,-1242.18,0.00010958,2]
[361012200,1747204245068,-400.0,0.00010958,2]
[361012201,1747204245078,-454.33884726,0.00010958,2]
[361012202,1747204245087,-400.0,0.00010958,2]
[361012203,1747204245097,-400.0,0.00010958,2]
[361012204,1747204245106,-966.36,0.00010958,2]
[361012205,1747204245115,-413.6386458,0.00010958,2]
[361012206,1747204245124,-545.15,0.00010958,2]
[361012207,1747204245133,-400.0,0.00010958,2]
[361012208,1747204245143,-434.95,0.00010958,2]
[361012209,1747204245152,-400.0,0.00010958,2]
[361012210,1747204245161,-2042.03982629,0.00010958,2]
[361012211,1747204245171,-464.39,0.00010958,2]
[361012212,1747204245180,-400.0,0.00010958,2]
[361012213,1747204245190,-400.0,0.00010958,2]
[361012214,1747204245199,-400.0,0.00010958,2]
[361012215,1747204245209,-400.0,0.00010958,2]
[361012216,1747204245218,-400.0,0.00010958,2]
[361012217,1747204245228,-400.0,0.00010958,2]
[361012218,1747204245238,-895.77,0.00010958,2]
[361012219,1747204245247,-400.0,0.00010958,2]
[361012220,1747204245257,-400.0,0.00010958,2]
[361012221,1747204245266,-1011.93,0.00010958,2]
[361012222,1747204245276,-1466.88,0.00010958,2]
[361012223,1747204245285,-618.32,0.00010958,2]
[361012224,1747204245294,-641.85,0.00010958,2]
[361012225,1747204245304,-400.0,0.00010958,2]
[361012226,1747204245313,-713.24,0.00010958,2]
[361012227,1747204245323,-423.1019047,0.00010958,2]
[361012228,1747204245332,-400.0,0.00010958,2]
[361012229,1747204245342,-429.12,0.00010958,2]
[361012230,1747204245352,-400.0,0.00010958,2]
[361012231,1747204245361,-400.0,0.00010958,2]
[361012232,1747204245371,-821.61,0.00010958,2]
[361012233,1747204245381,-400.0,0.00010958,2]
[361012234,1747204245390,-1383.81,0.00010958,2]
[361012235,1747204245399,-400.0,0.00010958,2]
[361012236,1747204245409,-400.0,0.00010958,2]
[361012237,1747204245418,-400.0,0.00010958,2]
[361012238,1747204245428,-289.02207712,0.00010958,2]
[361012239,1747204245439,-901.81,0.00010958,2]
[361012240,1747204245448,-400.0,0.00010958,2]
[361012241,1747204245458,-621.96,0.00010958,2]
[361012242,1747204245468,-400.0,0.00010958,2]
[361012243,1747204245479,-286.91168333,0.00010958,2]
[361012244,1747204245488,-400.0,0.00010958,2]
[361012245,1747204245498,-3359.92,0.00010958,2]
[361012246,1747204245508,-230.81201506,0.00010958,2]
[361012247,1747204245518,-400.0,0.00010958,2]
[361012248,1747204245527,-400.0,0.00010958,2]
[361012249,1747204245537,-420.17,0.00010958,2]
[361012250,1747204245546,-1345.09,0.00010958,2]
[361012251,1747204245556,-528.5,0.00010958,2]
[361012252,1747204245565,-400.0,0.00010958,2]
[361012253,1747204245575,-400.0,0.00010958,2]
[361012254,1747204245584,-400.0,0.00010958,2]
[361012255,1747204245593,-800.05,0.00010958,2]
[361012256,1747204245603,-839.99,0.00010958,2]
[361012257,1747204245612,-933.17,0.00010958,2]
[361012258,1747204245622,-400.0,0.00010958,2]
[361012259,1747204245631,-696.44,0.00010958,2]
[361012260,1747204245640,-400.0,0.00010958,2]
[361012261,1747204245650,-408.66,0.00010958,2]
[361012262,1747204245660,-400.0,0.00010958,2]
[361012263,1747204245669,-400.0,0.00010958,2]
[361012264,1747204245679,-400.0,0.00010958,2]
[361012265,1747204245689,-400.0,0.00010958,2]
[361012266,1747204245698,-557.11,0.00010958,2]
[361012267,1747204245707,-400.0,0.00010958,2]
[361012268,1747204245717,-306.43389179,0.00010958,2]
[361012269,1747204245726,-400.0,0.00010958,2]
[361012270,1747204245736,-1303.25,0.00010958,2]
[361012271,1747204245746,-460.94173905,0.00010958,2]
[361012272,1747204245756,-400.0,0.00010958,2]
[361012273,1747204245765,-400.0,0.00010958,2]
[361012274,1747204245777,-910.91,0.00010958,2]
[361012275,1747204245787,-400.0,0.00010958,2]
[361012276,1747204245797,-2670.42,0.00010958,2]
[361012277,1747204245807,-569.76,0.00010958,2]
[361012278,1747204245816,-400.0,0.00010958,2]
[361012279,1747204245826,-400.0,0.00010958,2]
[361012280,1747204245836,-1092.94,0.00010958,2]
[361012281,1747204245846,-563.36,0.00010958,2]
[361012282,1747204245856,-479.68,0.00010958,2]
[361012283,1747204245866,-1902.85,0.00010958,2]
[361012284,1747204245876,-400.0,0.00010958,2]
[361012285,1747204245886,-410.87342227,0.00010958,2]
[361012286,1747204245896,-400.0,0.00010958,2]
[361012287,1747204245905,-400.0,0.00010958,2]
[361012288,1747204245915,-662.5,0.00010958,2]
[361012289,1747204245924,-1004.25,0.00010958,2]
[361012290,1747204245934,-400.0,0.00010958,2]
[361012291,1747204245943,-438.79,0.00010958,2]
[361012292,1747204245953,-832.03,0.00010958,2]
[361012293,1747204245963,-525.87,0.00010958,2]
[361012294,1747204245973,-705.59,0.00010958,2]
[361012295,1747204245982,-400.0,0.00010958,2]
[361012296,1747204245992,-514.93,0.00010958,2]
[361012297,1747204246002,-400.0,0.00010958,2]
[361012298,1747204246012,-406.65971303,0.00010958,2]
[361012301,1747204246154,-409.91185768,0.00010958,2]
[361012302,1747204246163,-400.0,0.00010958,2]
[361012303,1747204246173,-400.0,0.00010958,2]
[361012304,1747204246183,-400.0,0.00010958,2]
[361012305,1747204246192,-400.0,0.00010958,2]
[361012306,1747204246202,-400.0,0.00010958,2]
[361012307,1747204246212,-400.0,0.00010958,2]
[361012308,1747204246221,-400.0,0.00010958,2]
[361012309,1747204246230,-400.0,0.00010958,2]
[361012310,1747204246239,-415.34,0.00010958,2]
[361012311,1747204246248,-1808.37,0.00010958,2]
[361012312,1747204246257,-1454.2,0.00010958,2]
[361012313,1747204246267,-400.0,0.00010958,2]
[361012314,1747204246276,-400.0,0.00010958,2]
[361012315,1747204246286,-543.52706252,0.00010958,2]
[361012316,1747204246295,-400.0,0.00010958,2]
[361012317,1747204246304,-400.0,0.00010958,2]
[361012318,1747204246314,-403.42,0.00010958,2]
[361012319,1747204246323,-400.0,0.00010958,2]
[361012320,1747204246332,-400.0,0.00010958,2]
[361012321,1747204246342,-400.0,0.00010958,2]
[361012322,1747204246352,-400.0,0.00010958,2]
[361012323,1747204246362,-926.27,0.00010958,2]
[361012324,1747204246371,-500.0,0.00010958,2]
[361012325,1747204246382,-882.44,0.00010958,2]
[361012326,1747204246391,-555.12,0.00010958,2]
[361012327,1747204246401,-400.0,0.00010958,2]
[361012328,1747204246411,-749.46,0.00010958,2]
[361012329,1747204246420,-400.0,0.00010958,2]
[361012330,1747204246430,-1838.06,0.00010958,2]
[361012331,1747204246442,-400.0,0.00010958,2]
[361012332,1747204246452,-401.7171722,0.00010958,2]
[361012333,1747204246462,-400.0,0.00010958,2]
[361012334,1747204246471,-400.0,0.00010958,2]
[361012335,1747204246482,-216.28568925,0.00010958,2]
[361012336,1747204246491,-400.0,0.00010958,2]
[361012337,1747204246501,-400.0,0.00010958,2]
[361012338,1747204246511,-417.31,0.00010958,2]
[361012339,1747204246522,-1118.81,0.00010958,2]
[361012340,1747204246532,-400.0,0.00010958,2]
[361012341,1747204246541,-400.0,0.00010958,2]
[361012342,1747204246551,-190.92540652,0.00010958,2]
[361012343,1747204246561,-501.14,0.00010958,2]
[361012344,1747204246570,-400.0,0.00010958,2]
[361012345,1747204246580,-417.67,0.00010958,2]
[361012346,1747204246590,-453.89,0.00010958,2]
[361012347,1747204246599,-400.0,0.00010958,2]
[361012348,1747204246609,-400.0,0.00010958,2]
[361012349,1747204246619,-400.0,0.00010958,2]
[361012350,1747204246629,-400.0,0.00010958,2]
[361012351,1747204246638,-400.0,0.00010958,2]
[361012352,1747204246647,-400.0,0.00010958,2]
[361012353,1747204246657,-1054.77,0.00010958,2]
[361012354,1747204246666,-1331.34,0.00010958,2]
[361012355,1747204246675,-432.3707923,0.00010958,2]
[361012356,1747204246685,-410.95280923,0.00010958,2]
[361012357,1747204246695,-400.0,0.00010958,2]
[361012358,1747204246704,-472.52,0.00010958,2]
[361012359,1747204246713,-400.0,0.00010958,2]
[361012360,1747204246722,-400.0,0.00010958,2]
[361012361,1747204246732,-400.0,0.00010958,2]
[361012362,1747204246740,-400.0,0.00010958,2]
[361012363,1747204246750,-400.0,0.00010958,2]
[361012364,1747204246760,-400.0,0.00010958,2]
[361012366,1747204246769,-585.72,0.00010958,2]
[361012368,1747204246778,-2170.83,0.00010958,2]
[361012370,1747204246787,-801.01,0.00010958,2]
[361012372,1747204246796,-400.0,0.00010958,2]
[361012374,1747204246805,-400.0,0.00010958,2]
[361012376,1747204246814,-400.0,0.00010958,2]
[361012378,1747204246823,-400.0,0.00010958,2]
[361012380,1747204246833,-401.48218611,0.00010958,2]
[361012382,1747204246842,-1524.55,0.00010958,2]
[361012383,1747204246851,-400.0,0.00010958,2]
[361012385,1747204246860,-400.0,0.00010958,2]
[361012387,1747204246870,-400.0,0.00010958,2]
[361012390,1747204246879,-400.0,0.00010958,2]
[361012391,1747204246888,-431.12,0.00010958,2]
[361012394,1747204246898,-550.73,0.00010958,2]
[361012396,1747204246908,-2577.43,0.00010958,2]
[361012398,1747204246917,-400.0,0.00010958,2]
[361012400,1747204246926,-400.0,0.00010958,2]
[361012401,1747204246935,-400.0,0.00010958,2]
[361012403,1747204246944,-400.0,0.00010958,2]
[361012405,1747204246953,-1036.77,0.00010958,2]
[361012407,1747204246963,-1311.35,0.00010958,2]
[361012409,1747204246972,-400.0,0.00010958,2]
[361012411,1747204246981,-1000.0,0.00010958,2]
[361012413,1747204246990,-400.0,0.00010958,2]
[361012415,1747204246999,-400.0,0.00010958,2]
[361012417,1747204247007,-400.0,0.00010958,2]
[361012420,1747204247016,-400.0,0.00010958,2]
[361012422,1747204247025,-400.0,0.00010958,2]
[361012423,1747204247033,-400.0,0.00010958,2]
[361012425,1747204247041,-643.05,0.00010958,2]
[361012428,1747204247050,-807.69,0.00010958,2]
[361012429,1747204247061,-461.02,0.00010958,2]
[361012431,1747204247070,-548.35,0.00010958,2]
[361012433,1747204247079,-400.0,0.00010958,2]
[361012435,1747204247088,-400.0,0.00010958,2]
[361012437,1747204247098,-400.0,0.00010958,2]
[361012439,1747204247107,-505.04,0.00010958,2]
[361012441,1747204247117,-488.33,0.00010958,2]
[361012443,1747204247126,-791.78,0.00010958,2]
[361012445,1747204247135,-401.98,0.00010958,2]
[361012447,1747204247145,-400.0,0.00010958,2]
[361012449,1747204247154,-1179.63,0.00010958,2]
[361012451,1747204247164,-1272.65,0.00010958,2]
[361012453,1747204247173,-400.0,0.00010958,2]
[361012455,1747204247183,-901.2,0.00010958,2]
[361012457,1747204247192,-358.41609132,0.00010958,2]
[361012459,1747204247201,-400.0,0.00010958,2]
[361012461,1747204247211,-1139.03,0.00010958,2]
[361012463,1747204247220,-451.90714715,0.00010958,2]
[361012465,1747204247229,-2587.86,0.00010958,2]
[361012467,1747204247239,-1101.86,0.00010958,2]
[361012469,1747204247249,-651.25,0.00010958,2]
[361012471,1747204247258,-1769.33,0.00010958,2]
[361012473,1747204247267,-400.0,0.00010958,2]
[361012475,1747204247276,-1450.44,0.00010958,2]
[361012477,1747204247285,-400.0,0.00010958,2]
[361012479,1747204247295,-400.0,0.00010958,2]
[361012481,1747204247304,-400.0,0.00010958,2]
[361012483,1747204247313,-680.39,0.00010958,2]
[361012485,1747204247323,-400.0,0.00010958,2]
[361012487,1747204247333,-670.99,0.00010958,2]
[361012489,1747204247342,-400.0,0.00010958,2]
[361012491,1747204247351,-400.0,0.00010958,2]
[361012493,1747204247361,-457.22,0.00010958,2]
[361012495,1747204247372,-408.36237864,0.00010958,2]
[361012497,1747204247382,-865.24,0.00010958,2]
[361012499,1747204247391,-400.0,0.00010958,2]
[361012501,1747204247401,-3158.22,0.00010958,2]
[361012502,1747204247410,-1618.16,0.00010958,2]
[361012505,1747204247420,-400.0,0.00010958,2]
[361012507,1747204247430,-1877.85,0.00010958,2]
[361012508,1747204247443,-534.4864388,0.00010958,2]
[361012510,1747204247452,-400.0,0.00010958,2]
[361012512,1747204247462,-1138.67,0.00010958,2]
[361012514,1747204247471,-540.17,0.00010958,2]
[361012516,1747204247481,-282.4141511,0.00010958,2]
[361012518,1747204247491,-400.0,0.00010958,2]
[361012520,1747204247500,-758.24,0.00010958,2]
[361012522,1747204247510,-4109.6,0.00010958,2]
[361012524,1747204247520,-568.97,0.00010958,2]
[361012526,1747204247530,-589.58,0.00010958,2]
[361012528,1747204247540,-408.14,0.00010958,2]
[361012530,1747204247549,-1430.43,0.00010958,2]
[361012532,1747204247559,-400.0,0.00010958,2]
[361012534,1747204247569,-749.84,0.00010958,2]
[361012536,1747204247578,-1611.22,0.00010958,2]
[361012538,1747204247588,-4405.38,0.00010958,2]
[361012540,1747204247597,-400.0,0.00010958,2]
[361012542,1747204247609,-500.0,0.00010958,2]
[361012544,1747204247619,-400.0,0.00010958,2]
[361012546,1747204247628,-400.0,0.00010958,2]
[361012548,1747204247637,-400.0,0.00010958,2]
[361012550,1747204247647,-400.0,0.00010958,2]
[361012552,1747204247656,-688.39,0.00010958,2]
[361012554,1747204247665,-2146.24,0.00010958,2]
[361012556,1747204247675,-400.0,0.00010958,2]
[361012558,1747204247684,-472.70033244,0.00010958,2]
[361012560,1747204247693,-1038.71,0.00010958,2]
[361012562,1747204247703,-895.89,0.00010958,2]
[361012564,1747204247713,-2583.08,0.00010958,2]
[361012566,1747204247722,-400.0,0.00010958,2]
[361012568,1747204247732,-400.0,0.00010958,2]
[361012570,1747204247741,-6285.79,0.00010958,2]
[361012572,1747204247751,-416.48374059,0.00010958,2]
[361012574,1747204247760,-400.0,0.00010958,2]
[361012576,1747204247770,-488.58,0.00010958,2]
[361012578,1747204247780,-400.0,0.00010958,2]
[361012580,1747204247789,-1351.82,0.00010958,2]
[361012582,1747204247798,-9790.19,0.00010958,2]
[361012584,1747204247807,-1445.78,0.00010958,2]
[361012586,1747204247817,-403.97071969,0.00010958,2]
[361012588,1747204247827,-400.0,0.00010958,2]
[361012590,1747204247836,-641.55,0.00010958,2]
[361012592,1747204247845,-749.95,0.00010958,2]
[361012594,1747204247855,-1137.39,0.00010958,2]
[361012596,1747204247864,-860.79,0.00010958,2]
[361012598,1747204247874,-400.0,0.00010958,2]
[361012600,1747204247883,-515.06831206,0.00010958,2]
[361012602,1747204247892,-400.0,0.00010958,2]
[361012604,1747204247903,-400.0,0.00010958,2]
[361012606,1747204247912,-478.87,0.00010958,2]
[361012608,1747204247921,-344.3542314,0.00010958,2]
[361012610,1747204247931,-508.68,0.00010958,2]
[361012612,1747204247940,-301.95563798,0.00010958,2]
[361012614,1747204247949,-400.0,0.00010958,2]
[361012616,1747204247959,-5070.86,0.00010958,2]
[361012618,1747204247968,-781.57,0.00010958,2]
[361012633,1747204248102,-400.0,0.00010958,2]
[361012635,1747204248112,-400.0,0.00010958,2]
[361012637,1747204248121,-400.0,0.00010958,2]
[361012639,1747204248131,-400.0,0.00010958,2]
[361012641,1747204248141,-1007.3,0.00010958,2]
[361012643,1747204248150,-400.0,0.00010958,2]
[361012645,1747204248160,-560.22,0.00010958,2]
[361012647,1747204248169,-1814.14,0.00010958,2]
[361012649,1747204248179,-1626.91,0.00010958,2]
[361012651,1747204248190,-9912.05,0.00010958,2]
[361012653,1747204248200,-400.0,0.00010958,2]
[361012655,1747204248209,-400.0,0.00010958,2]
[361012657,1747204248218,-400.0,0.00010958,2]
[361012659,1747204248228,-400.0,0.00010958,2]
[361012661,1747204248238,-400.0,0.00010958,2]
[361012663,1747204248248,-400.0,0.00010958,2]
[361012665,1747204248258,-400.0,0.00010958,2]
[361012667,1747204248270,-740.14,0.00010958,2]
[361012669,1747204248280,-476.96,0.00010958,2]
[361012671,1747204248291,-400.0,0.00010958,2]
[361012673,1747204248301,-400.0,0.00010958,2]
[361012675,1747204248310,-355.59929042,0.00010958,2]
[361012677,1747204248319,-2300.36,0.00010958,2]
[361012679,1747204248329,-711.9,0.00010958,2]
[361012681,1747204248339,-428.89,0.00010958,2]
[361012683,1747204248349,-400.0,0.00010958,2]
[361012685,1747204248359,-506.24366494,0.00010958,2]
[361012687,1747204248368,-526.32,0.00010958,2]
[361012690,1747204248378,-1345.42,0.00010958,2]
[361012691,1747204248388,-595.2,0.00010958,2]
[361012694,1747204248398,-1328.4,0.00010958,2]
[361012696,1747204248409,-400.0,0.00010958,2]
[361012698,1747204248419,-401.10031461,0.00010958,2]
[361012700,1747204248428,-400.0,0.00010958,2]
[361012701,1747204248439,-2164.86,0.00010958,2]
[361012703,1747204248449,-400.0,0.00010958,2]
[361012706,1747204248459,-156.13960389,0.00010958,2]
[361012707,1747204248468,-400.0,0.00010958,2]
[361012709,1747204248478,-1430.89,0.00010958,2]
[361012712,1747204248489,-509.78,0.00010958,2]
[361012714,1747204248499,-400.0,0.00010958,2]
[361012716,1747204248509,-213.08505889,0.00010958,2]
[361012718,1747204248520,-172.09619561,0.00010958,2]
[361012720,1747204248530,-401.85279123,0.00010958,2]
[361012722,1747204248539,-879.2,0.00010958,2]
[361012724,1747204248549,-400.0,0.00010958,2]
[361012726,1747204248559,-458.02745649,0.00010958,2]
[361012728,1747204248568,-6001.78,0.00010958,2]
[361012730,1747204248577,-833.36,0.00010958,2]
[361012732,1747204248587,-606.69,0.00010958,2]
[361012734,1747204248596,-236.44254969,0.00010958,2]
[361012736,1747204248606,-400.0,0.00010958,2]
[361012738,1747204248615,-663.6,0.00010958,2]
[361012740,1747204248624,-400.0,0.00010958,2]
[361012742,1747204248634,-750.62,0.00010958,2]
[361012744,1747204248643,-406.01588332,0.00010958,2]
[361012746,1747204248653,-400.0,0.00010958,2]
[361012747,1747204248662,-639.27,0.00010958,2]
[361012750,1747204248672,-413.7814317,0.00010958,2]
[361012751,1747204248681,-4781.31,0.00010958,2]
[361012754,1747204248691,-400.0,0.00010958,2]
[361012756,1747204248701,-854.52,0.00010958,2]
[361012758,1747204248711,-400.0,0.00010958,2]
[361012760,1747204248722,-400.0,0.00010958,2]
[361012762,1747204248731,-400.0,0.00010958,2]
[361012764,1747204248740,-400.0,0.00010958,2]
[361012766,1747204248749,-400.0,0.00010958,2]
[361012768,1747204248759,-400.0,0.00010958,2]
[361012770,1747204248768,-1500.91,0.00010958,2]
[361012772,1747204248778,-400.0,0.00010958,2]
[361012773,1747204248787,-400.0,0.00010958,2]
[361012776,1747204248797,-1197.73,0.00010958,2]
[361012777,1747204248806,-419.34173222,0.00010958,2]
[361012780,1747204248816,-1074.97,0.00010958,2]
[361012782,1747204248825,-400.0,0.00010958,2]
[361012783,1747204248835,-594.29,0.00010958,2]
[361012785,1747204248845,-549.05539173,0.00010958,2]
[361012788,1747204248854,-240.70205449,0.00010958,2]
[361012789,1747204248864,-747.71,0.00010958,2]
[361012792,1747204248874,-453.58,0.00010958,2]
[361012794,1747204248883,-400.0,0.00010958,2]
[361012796,1747204248893,-400.0,0.00010958,2]
[361012798,1747204248902,-403.56,0.00010958,2]
[361012800,1747204248912,-750.08,0.00010958,2]
[361012802,1747204248921,-400.0,0.00010958,2]
[361012804,1747204248931,-400.0,0.00010958,2]
[361012805,1747204248940,-400.0,0.00010958,2]
[361012807,1747204248950,-494.46,0.00010958,2]
[361012810,1747204248959,-400.0,0.00010958,2]
[361012812,1747204248968,-6617.25,0.00010958,2]
[361012813,1747204248978,-400.0,0.00010958,2]
[361012816,1747204248987,-400.0,0.00010958,2]
[361012817,1747204248997,-400.0,0.00010958,2]
[361012819,1747204249006,-400.0,0.00010958,2]
[361012821,1747204249015,-400.0,0.00010958,2]
[361012823,1747204249025,-400.0,0.00010958,2]
[361012825,1747204249035,-400.0,0.00010958,2]
[361012827,1747204249044,-356.2288968,0.00010958,2]
[361012829,1747204249053,-400.0,0.00010958,2]
[361012831,1747204249063,-400.0,0.00010958,2]
[361012833,1747204249072,-400.0,0.00010958,2]
[361012836,1747204249081,-400.0,0.00010958,2]
[361012838,1747204249091,-1217.33,0.00010958,2]
[361012840,1747204249100,-400.0,0.00010958,2]
[361012841,1747204249109,-1648.54,0.00010958,2]
[361012843,1747204249118,-400.0,0.00010958,2]
[361012845,1747204249127,-568.88,0.00010958,2]
[361012847,1747204249136,-400.0,0.00010958,2]
[361012849,1747204249146,-400.0,0.00010958,2]
[361012851,1747204249155,-400.0,0.00010958,2]
[361012853,1747204249164,-500.0,0.00010958,2]
[361012855,1747204249173,-500.0,0.00010958,2]
[361012857,1747204249183,-400.0,0.00010958,2]
[361012859,1747204249192,-529.96,0.00010958,2]
[361012861,1747204249202,-508.33,0.00010958,2]
[361012863,1747204249211,-506.81270914,0.00010958,2]
[361012865,1747204249220,-400.0,0.00010958,2]
[361012867,1747204249230,-1660.74,0.00010958,2]
[361012869,1747204249239,-523.61,0.00010958,2]
[361012871,1747204249248,-330.8263062,0.00010958,2]
[361012873,1747204249258,-400.0,0.00010958,2]
[361012875,1747204249267,-401.0390719,0.00010958,2]
[361012877,1747204249276,-400.0,0.00010958,2]
[361012879,1747204249286,-746.75,0.00010958,2]
[361012881,1747204249295,-415.19,0.00010958,2]
[361012883,1747204249304,-400.0,0.00010958,2]
[361012885,1747204249314,-400.0,0.00010958,2]
[361012887,1747204249323,-400.0,0.00010958,2]
[361012889,1747204249333,-400.0,0.00010958,2]
[361012891,1747204249342,-690.36,0.00010958,2]
[361012893,1747204249351,-1790.42,0.00010958,2]
[361012895,1747204249361,-400.0,0.00010958,2]
[361012897,1747204249370,-400.0,0.00010958,2]
[361012899,1747204249380,-662.03,0.00010958,2]
[361012901,1747204249389,-5263.94,0.00010958,2]
[361012903,1747204249399,-400.0,0.00010958,2]
[361012905,1747204249408,-715.77,0.00010958,2]
[361012907,1747204249417,-400.0,0.00010958,2]
[361012909,1747204249427,-690.39,0.00010958,2]
[361012911,1747204249437,-400.0,0.00010958,2]
[361012913,1747204249450,-630.08,0.00010958,2]
[361012914,1747204249460,-2250.63,0.00010958,2]
[361012915,1747204249469,-400.0,0.00010958,2]
[361012916,1747204249478,-400.0,0.00010958,2]
[361012917,1747204249488,-2707.56,0.00010958,2]
[361012918,1747204249498,-400.0,0.00010958,2]
[361012919,1747204249507,-400.0,0.00010958,2]
[361012920,1747204249517,-577.53,0.00010958,2]
[361012921,1747204249527,-401.09062881,0.00010958,2]
[361012922,1747204249536,-400.0,0.00010958,2]
[361012923,1747204249545,-400.0,0.00010958,2]
[361012924,1747204249554,-2756.58,0.00010958,2]
[361012925,1747204249563,-730.93,0.00010958,2]
[361012926,1747204249572,-400.0,0.00010958,2]
[361012927,1747204249581,-931.6,0.00010958,2]
[361012928,1747204249591,-400.0,0.00010958,2]
[361012930,1747204249600,-400.0,0.00010958,2]
[361012932,1747204249609,-400.0,0.00010958,2]
[361012934,1747204249619,-400.0,0.00010958,2]
[361012936,1747204249628,-400.0,0.00010958,2]
[361012938,1747204249637,-400.0,0.00010958,2]
[361012939,1747204249646,-400.0,0.00010958,2]
[361012941,1747204249655,-675.28,0.00010958,2]
[361012943,1747204249666,-496.19400945,0.00010958,2]
[361012945,1747204249676,-400.0,0.00010958,2]
[361012947,1747204249685,-470.22,0.00010958,2]
[361012949,1747204249695,-934.82,0.00010958,2]
[361012951,1747204249704,-446.71,0.00010958,2]
[361012953,1747204249714,-434.38,0.00010958,2]
[361012955,1747204249723,-508.16416051,0.00010958,2]
[361012957,1747204249731,-400.0,0.00010958,2]
[361012959,1747204249739,-1870.69,0.00010958,2]
[361012961,1747204249747,-400.0,0.00010958,2]
[361012963,1747204249756,-500.0,0.00010958,2]
[361012965,1747204249765,-400.0,0.00010958,2]
[361012967,1747204249774,-400.0,0.00010958,2]
[361012983,1747204249898,-1090.88,0.00010958,2]
[361012985,1747204249906,-2495.24,0.00010958,2]
[361012987,1747204249915,-394.17730319,0.00010958,2]
[361012989,1747204249923,-512.43182869,0.00010958,2]
[361012991,1747204249932,-506.78981816,0.00010958,2]
[361012993,1747204249942,-265.52682698,0.00010958,2]
[361012995,1747204249951,-500.0,0.00010958,2]
[361012997,1747204249960,-190.38790595,0.00010958,2]
[361012999,1747204249969,-511.3106019,0.00010958,2]
[361013001,1747204249978,-425.19892459,0.00010958,2]
[361013003,1747204249987,-400.0,0.00010958,2]
[361013005,1747204249997,-1667.21,0.00010958,2]
[361013007,1747204250007,-400.0,0.00010958,2]
[361013009,1747204250016,-400.0,0.00010958,2]
[361013012,1747204250026,-442.38,0.00010958,2]
[361013013,1747204250035,-400.0,0.00010958,2]
[361013015,1747204250045,-400.0,0.00010958,2]
[361013018,1747204250056,-930.21,0.00010958,2]
[361013019,1747204250065,-434.12,0.00010958,2]
[361013021,1747204250076,-992.11,0.00010958,2]
[361013023,1747204250085,-400.0,0.00010958,2]
[361013025,1747204250095,-495.12,0.00010958,2]
[361013027,1747204250105,-400.0,0.00010958,2]
[361013029,1747204250114,-500.0,0.00010959,2]
[361013031,1747204250123,-200.0,0.00010959,2]